[Event "Titled Tuesday Blitz May 4 2021"]
[White "Lazavik, Denis"]
[Black "Jobava, Baadur"]
[WhiteFideId "13515110"]
[BlackFideId "13601520"]
[WhiteElo "2436"]
[BlackElo "2748"]
[Result "1/2-1/2"]
[Round "11"]
[TimeControl "180+1"]
[Date "2021.05.04"]
[WhiteClock "0:00:14"]
[BlackClock "0:00:24"]

1. d4 {[%clk 0:03:00]}  d5 {[%clk 0:02:59]} 2. c4 {[%clk 0:03:01]}  c6 {[%clk 0:03:00]} 3. Nf3 {[%clk 0:03:00]}  Nf6 {[%clk 0:03:01]} 4. e3 {[%clk 0:03:00]}  Bf5 {[%clk 0:03:00]} 5. Nc3 {[%clk 0:03:00]}  e6 {[%clk 0:03:00]} 6. Nh4 {[%clk 0:02:59]}  g6 {[%clk 0:03:00]} 7. f3 {[%clk 0:02:53]}  h5 {[%clk 0:02:59]} 8. g3 {[%clk 0:02:51]}  Nbd7 {[%clk 0:02:57]} 9. Bg2 {[%clk 0:02:50]}  Nb6 {[%clk 0:02:41]} 10. O-O {[%clk 0:02:37]}  Nxc4 {[%clk 0:02:36]} 11. Qe2 {[%clk 0:02:35]}  Nb6 {[%clk 0:02:27]} 12. e4 {[%clk 0:02:31]}  dxe4 {[%clk 0:02:28]} 13. fxe4 {[%clk 0:02:28]}  Qxd4+ {[%clk 0:02:11]} 14. Be3 {[%clk 0:02:26]}  Qc4 {[%clk 0:02:10]} 15. exf5 {[%clk 0:02:21]}  Qxe2 {[%clk 0:02:10]} 16. Nxe2 {[%clk 0:02:21]}  gxf5 {[%clk 0:02:07]} 17. Bd4 {[%clk 0:02:03]}  Nbd7 {[%clk 0:02:04]} 18. Rad1 {[%clk 0:01:38]}  Rg8 {[%clk 0:01:54]} 19. Nf3 {[%clk 0:01:26]}  Bc5 {[%clk 0:01:52]} 20. Bxc5 {[%clk 0:01:23]}  Nxc5 {[%clk 0:01:53]} 21. Nf4 {[%clk 0:01:24]}  Ke7 {[%clk 0:01:51]} 22. Ne5 {[%clk 0:01:23]}  a5 {[%clk 0:01:45]} 23. Nfd3 {[%clk 0:01:20]}  Nce4 {[%clk 0:01:40]} 24. Nf2 {[%clk 0:01:20]}  Nc5 {[%clk 0:01:30]} 25. Rc1 {[%clk 0:01:19]}  Ncd7 {[%clk 0:01:26]} 26. Nxd7 {[%clk 0:01:16]}  Nxd7 {[%clk 0:01:27]} 27. Nd3 {[%clk 0:01:16]}  h4 {[%clk 0:01:26]} 28. gxh4 {[%clk 0:01:16]}  Rh8 {[%clk 0:01:24]} 29. Rf4 {[%clk 0:01:10]}  Rh6 {[%clk 0:01:18]} 30. Re1 {[%clk 0:00:58]}  Kf6 {[%clk 0:01:15]} 31. Nf2 {[%clk 0:00:57]}  Kg7 {[%clk 0:01:12]} 32. Nh1 {[%clk 0:00:56]}  Rah8 {[%clk 0:01:11]} 33. Rd1 {[%clk 0:00:53]}  Ne5 {[%clk 0:01:10]} 34. Ng3 {[%clk 0:00:50]}  Rxh4 {[%clk 0:01:09]} 35. Rxh4 {[%clk 0:00:50]}  Rxh4 {[%clk 0:01:10]} 36. h3 {[%clk 0:00:48]}  Rb4 {[%clk 0:01:00]} 37. b3 {[%clk 0:00:46]}  a4 {[%clk 0:01:00]} 38. Rb1 {[%clk 0:00:46]}  f4 {[%clk 0:00:58]} 39. Nf1 {[%clk 0:00:40]}  a3 {[%clk 0:00:52]} 40. Kf2 {[%clk 0:00:36]}  Rd4 {[%clk 0:00:51]} 41. Ke2 {[%clk 0:00:37]}  f5 {[%clk 0:00:49]} 42. Nd2 {[%clk 0:00:37]}  Kf6 {[%clk 0:00:48]} 43. h4 {[%clk 0:00:35]}  Rd3 {[%clk 0:00:48]} 44. Rf1 {[%clk 0:00:27]}  Rg3 {[%clk 0:00:42]} 45. Bf3 {[%clk 0:00:26]}  Rh3 {[%clk 0:00:41]} 46. Rh1 {[%clk 0:00:22]}  Nxf3 {[%clk 0:00:39]} 47. Rxh3 {[%clk 0:00:22]}  Ng1+ {[%clk 0:00:39]} 48. Kf2 {[%clk 0:00:22]}  Nxh3+ {[%clk 0:00:40]} 49. Kg2 {[%clk 0:00:23]}  e5 {[%clk 0:00:40]} 50. Kxh3 {[%clk 0:00:23]}  e4 {[%clk 0:00:41]} 51. Nc4 {[%clk 0:00:21]}  b5 {[%clk 0:00:31]} 52. Nxa3 {[%clk 0:00:20]}  b4 {[%clk 0:00:32]} 53. Nc4 {[%clk 0:00:18]}  c5 {[%clk 0:00:28]} 54. Kg2 {[%clk 0:00:17]}  Kg6 {[%clk 0:00:28]} 55. Nd6 {[%clk 0:00:17]}  f3+ {[%clk 0:00:26]} 56. Kf2 {[%clk 0:00:16]}  Kf6 {[%clk 0:00:25]} 57. Ke3 {[%clk 0:00:16]}  Ke5 {[%clk 0:00:22]} 58. Nc4+ {[%clk 0:00:16]}  Kf6 {[%clk 0:00:21]} 59. Kf4 {[%clk 0:00:16]}  Kg6 {[%clk 0:00:21]} 60. Ne3 {[%clk 0:00:16]}  Kh5 {[%clk 0:00:19]} 61. Nxf5 {[%clk 0:00:11]}  f2 {[%clk 0:00:19]} 62. Ne3 {[%clk 0:00:11]}  Kxh4 {[%clk 0:00:19]} 63. Kxe4 {[%clk 0:00:12]}  Kg3 {[%clk 0:00:20]} 64. Kd3 {[%clk 0:00:13]}  Kf3 {[%clk 0:00:20]} 65. Nf1 {[%clk 0:00:13]}  Kf4 {[%clk 0:00:19]} 66. Ke2 {[%clk 0:00:13]}  Ke4 {[%clk 0:00:20]} 67. Kxf2 {[%clk 0:00:10]}  Kd3 {[%clk 0:00:20]} 68. Ke1 {[%clk 0:00:10]}  Kc2 {[%clk 0:00:18]} 69. Ne3+ {[%clk 0:00:10]}  Kb2 {[%clk 0:00:18]} 70. Kd2 {[%clk 0:00:10]}  Kxa2 {[%clk 0:00:17]} 71. Kc2 {[%clk 0:00:11]}  Ka3 {[%clk 0:00:18]} 72. Nc4+ {[%clk 0:00:11]}  Ka2 {[%clk 0:00:19]} 73. Nb6 {[%clk 0:00:11]}  Ka3 {[%clk 0:00:19]} 74. Nd7 {[%clk 0:00:11]}  c4 {[%clk 0:00:20]} 75. bxc4 {[%clk 0:00:11]}  b3+ {[%clk 0:00:20]} 76. Kb1 {[%clk 0:00:11]}  Kb4 {[%clk 0:00:20]} 77. Ne5 {[%clk 0:00:09]}  Kc5 {[%clk 0:00:21]} 78. Kb2 {[%clk 0:00:10]}  Kb4 {[%clk 0:00:21]} 79. Kb1 {[%clk 0:00:05]}  Kc5 {[%clk 0:00:21]} 80. Kc1 {[%clk 0:00:04]}  Kd4 {[%clk 0:00:21]} 81. Kb2 {[%clk 0:00:04]}  Kxe5 {[%clk 0:00:22]} 82. Kxb3 {[%clk 0:00:05]}  Kd6 {[%clk 0:00:23]} 83. Kb4 {[%clk 0:00:06]}  Kc6 {[%clk 0:00:23]} 84. c5 {[%clk 0:00:06]}  Kc7 {[%clk 0:00:23]} 85. Kc4 {[%clk 0:00:07]}  Kc6 {[%clk 0:00:24]} 86. Kd4 {[%clk 0:00:08]}  Kc7 {[%clk 0:00:24]} 87. Kd5 {[%clk 0:00:09]}  Kd7 {[%clk 0:00:24]} 88. c6+ {[%clk 0:00:10]}  Kc7 {[%clk 0:00:25]} 89. Kc5 {[%clk 0:00:11]}  Kc8 {[%clk 0:00:24]} 90. Kd6 {[%clk 0:00:10]}  Kd8 {[%clk 0:00:24]} 91. Kd5 {[%clk 0:00:11]}  Kc7 {[%clk 0:00:24]} 92. Kc5 {[%clk 0:00:12]}  Kc8 {[%clk 0:00:24]} 93. Kb6 {[%clk 0:00:13]}  Kb8 {[%clk 0:00:24]} 94. c7+ {[%clk 0:00:13]}  Kc8 {[%clk 0:00:24]} 95. Kc6 {[%clk 0:00:14]} 1/2-1/2


[Site "https://www.chess.com"]

[Event "Titled Tuesday Blitz May 4 2021"]
[White "Lehtosaari, Mauri"]
[Black "Radu, David Cr."]
[WhiteFideId "501999"]
[BlackFideId "1265717"]
[WhiteElo "2410"]
[BlackElo "1596"]
[Result "1-0"]
[Round "11"]
[TimeControl "180+1"]
[Date "2021.05.04"]
[WhiteClock "0:00:20"]
[BlackClock "0:00:10"]

1. d4 {[%clk 0:03:00]}  d5 {[%clk 0:02:58]} 2. Nf3 {[%clk 0:02:56]}  Nf6 {[%clk 0:02:56]} 3. Bg5 {[%clk 0:02:56]}  e6 {[%clk 0:02:56]} 4. Nbd2 {[%clk 0:02:56]}  Be7 {[%clk 0:02:56]} 5. e3 {[%clk 0:02:56]}  O-O {[%clk 0:02:54]} 6. Bd3 {[%clk 0:02:56]}  b6 {[%clk 0:02:54]} 7. O-O {[%clk 0:02:55]}  Bb7 {[%clk 0:02:54]} 8. Ne5 {[%clk 0:02:55]}  Nbd7 {[%clk 0:02:53]} 9. f4 {[%clk 0:02:55]}  c5 {[%clk 0:02:52]} 10. c3 {[%clk 0:02:51]}  Ne4 {[%clk 0:02:51]} 11. Bxe7 {[%clk 0:02:48]}  Qxe7 {[%clk 0:02:50]} 12. Nxd7 {[%clk 0:02:35]}  Qxd7 {[%clk 0:02:48]} 13. dxc5 {[%clk 0:02:27]}  bxc5 {[%clk 0:02:39]} 14. Nf3 {[%clk 0:02:11]}  Qc7 {[%clk 0:02:31]} 15. Qc2 {[%clk 0:02:04]}  f5 {[%clk 0:01:52]} 16. Bxe4 {[%clk 0:01:56]}  fxe4 {[%clk 0:01:53]} 17. Ne5 {[%clk 0:01:56]}  Rad8 {[%clk 0:01:51]} 18. Rad1 {[%clk 0:01:53]}  Qb6 {[%clk 0:01:50]} 19. Qd2 {[%clk 0:01:13]}  Rd6 {[%clk 0:01:36]} 20. Nc4 {[%clk 0:01:10]}  dxc4 {[%clk 0:01:31]} 21. Qxd6 {[%clk 0:01:09]}  Qxd6 {[%clk 0:01:30]} 22. Rxd6 {[%clk 0:01:10]}  Bd5 {[%clk 0:01:30]} 23. f5 {[%clk 0:00:59]}  Re8 {[%clk 0:01:08]} 24. fxe6 {[%clk 0:00:57]}  Bxe6 {[%clk 0:01:09]} 25. Rf4 {[%clk 0:00:52]}  Bf7 {[%clk 0:01:02]} 26. Rd7 {[%clk 0:00:44]}  Bg6 {[%clk 0:01:00]} 27. Rxa7 {[%clk 0:00:43]}  Rd8 {[%clk 0:00:54]} 28. h4 {[%clk 0:00:28]}  h5 {[%clk 0:00:39]} 29. g4 {[%clk 0:00:27]}  Rd2 {[%clk 0:00:33]} 30. gxh5 {[%clk 0:00:22]}  Bxh5 {[%clk 0:00:34]} 31. Rxe4 {[%clk 0:00:22]}  Bf3 {[%clk 0:00:33]} 32. Re5 {[%clk 0:00:21]}  Rg2+ {[%clk 0:00:27]} 33. Kf1 {[%clk 0:00:21]}  Rxb2 {[%clk 0:00:27]} 34. Rg5 {[%clk 0:00:21]}  Be2+ {[%clk 0:00:21]} 35. Ke1 {[%clk 0:00:21]}  Bd3 {[%clk 0:00:19]} 36. Rgxg7+ {[%clk 0:00:21]}  Kf8 {[%clk 0:00:19]} 37. Rgb7 {[%clk 0:00:21]}  Re2+ {[%clk 0:00:14]} 38. Kd1 {[%clk 0:00:21]}  Bg6 {[%clk 0:00:10]} 39. Kxe2 {[%clk 0:00:20]} 1-0


[Site "https://www.chess.com"]

[Event "Titled Tuesday Blitz May 4 2021"]
[White "Leitao, Rafael"]
[Black "Tomb, Maroun"]
[WhiteFideId "2101246"]
[BlackFideId "5300398"]
[WhiteElo "2609"]
[BlackElo "2564"]
[Result "1-0"]
[Round "11"]
[TimeControl "180+1"]
[Date "2021.05.04"]
[WhiteClock "0:00:25"]
[BlackClock "0:00:01"]

1. c4 {[%clk 0:03:00]}  d6 {[%clk 0:02:57]} 2. g3 {[%clk 0:03:00]}  Nf6 {[%clk 0:02:58]} 3. Bg2 {[%clk 0:03:00]}  Nbd7 {[%clk 0:02:59]} 4. d4 {[%clk 0:03:00]}  e5 {[%clk 0:02:57]} 5. Nf3 {[%clk 0:02:56]}  Be7 {[%clk 0:02:57]} 6. Nc3 {[%clk 0:02:56]}  O-O {[%clk 0:02:56]} 7. O-O {[%clk 0:02:56]}  c6 {[%clk 0:02:57]} 8. e4 {[%clk 0:02:54]}  a6 {[%clk 0:02:54]} 9. h3 {[%clk 0:02:47]}  b5 {[%clk 0:02:52]} 10. a3 {[%clk 0:02:47]}  Bb7 {[%clk 0:02:50]} 11. Be3 {[%clk 0:02:45]}  Re8 {[%clk 0:02:42]} 12. Qc2 {[%clk 0:02:25]}  Qc7 {[%clk 0:02:40]} 13. Rac1 {[%clk 0:02:19]}  Rac8 {[%clk 0:02:38]} 14. Rfd1 {[%clk 0:01:50]}  Bf8 {[%clk 0:02:30]} 15. cxb5 {[%clk 0:01:41]}  cxb5 {[%clk 0:02:29]} 16. Qb1 {[%clk 0:01:35]}  Qb8 {[%clk 0:02:29]} 17. d5 {[%clk 0:01:30]}  Rc4 {[%clk 0:02:08]} 18. Nd2 {[%clk 0:01:28]}  Rc7 {[%clk 0:02:03]} 19. Nb3 {[%clk 0:01:27]}  Rec8 {[%clk 0:02:02]} 20. Na5 {[%clk 0:01:25]}  Nc5 {[%clk 0:02:01]} 21. Na2 {[%clk 0:01:15]}  Na4 {[%clk 0:01:50]} 22. Nb4 {[%clk 0:01:11]}  Nd7 {[%clk 0:01:35]} 23. Nbc6 {[%clk 0:01:10]}  Bxc6 {[%clk 0:01:28]} 24. Nxc6 {[%clk 0:01:09]}  Qb7 {[%clk 0:01:25]} 25. b3 {[%clk 0:01:10]}  Nac5 {[%clk 0:01:22]} 26. Rc2 {[%clk 0:01:09]}  Nb8 {[%clk 0:01:14]} 27. Na5 {[%clk 0:01:08]}  Qa8 {[%clk 0:01:11]} 28. Rdc1 {[%clk 0:01:08]}  Nb7 {[%clk 0:00:16]} 29. Rxc7 {[%clk 0:01:06]}  Rxc7 {[%clk 0:00:17]} 30. Rxc7 {[%clk 0:01:06]}  Nxa5 {[%clk 0:00:18]} 31. Qc2 {[%clk 0:01:00]}  h5 {[%clk 0:00:14]} 32. Rc8 {[%clk 0:00:47]}  Qb7 {[%clk 0:00:12]} 33. Bd2 {[%clk 0:00:36]}  Nxb3 {[%clk 0:00:10]} 34. Rxb8 {[%clk 0:00:34]}  Qxb8 {[%clk 0:00:09]} 35. Qxb3 {[%clk 0:00:34]}  Be7 {[%clk 0:00:08]} 36. Qc3 {[%clk 0:00:34]}  g6 {[%clk 0:00:06]} 37. Qc6 {[%clk 0:00:33]}  Qa7 {[%clk 0:00:04]} 38. Be3 {[%clk 0:00:33]}  Qb8 {[%clk 0:00:02]} 39. Bb6 {[%clk 0:00:33]}  Bf8 {[%clk 0:00:02]} 40. Qc7 {[%clk 0:00:31]}  Qa8 {[%clk 0:00:02]} 41. Qd8 {[%clk 0:00:25]}  Qb7 {[%clk 0:00:01]} 42. Bc7 {[%clk 0:00:25]} 1-0


[Site "https://www.chess.com"]

[Event "Titled Tuesday Blitz May 4 2021"]
[White "Luberanski, Jakub"]
[Black "Ljukin, Sergei"]
[WhiteFideId "21830509"]
[BlackFideId "14102200"]
[WhiteElo "2078"]
[BlackElo "2287"]
[Result "1-0"]
[Round "11"]
[TimeControl "180+1"]
[Date "2021.05.04"]
[WhiteClock "0:00:59"]
[BlackClock "0:00:14"]

1. e4 {[%clk 0:03:00]}  e6 {[%clk 0:02:59]} 2. d4 {[%clk 0:03:00]}  d5 {[%clk 0:03:00]} 3. Nc3 {[%clk 0:03:00]}  Bb4 {[%clk 0:02:59]} 4. e5 {[%clk 0:02:55]}  Ne7 {[%clk 0:02:59]} 5. a3 {[%clk 0:02:48]}  Bxc3+ {[%clk 0:02:59]} 6. bxc3 {[%clk 0:02:49]}  c5 {[%clk 0:02:59]} 7. Qg4 {[%clk 0:02:49]}  Qc7 {[%clk 0:02:59]} 8. Qxg7 {[%clk 0:02:47]}  Rg8 {[%clk 0:02:59]} 9. Qxh7 {[%clk 0:02:47]}  cxd4 {[%clk 0:02:59]} 10. Ne2 {[%clk 0:02:46]}  Nbc6 {[%clk 0:02:59]} 11. f4 {[%clk 0:02:41]}  Bd7 {[%clk 0:02:59]} 12. h4 {[%clk 0:02:37]}  dxc3 {[%clk 0:02:58]} 13. h5 {[%clk 0:02:35]}  O-O-O {[%clk 0:02:58]} 14. Qd3 {[%clk 0:02:36]}  d4 {[%clk 0:02:54]} 15. h6 {[%clk 0:02:35]}  Rg6 {[%clk 0:02:53]} 16. h7 {[%clk 0:02:32]}  Rh8 {[%clk 0:02:53]} 17. Nxd4 {[%clk 0:02:31]}  Nxd4 {[%clk 0:02:49]} 18. Qxd4 {[%clk 0:02:32]}  Kb8 {[%clk 0:02:37]} 19. Be3 {[%clk 0:02:25]}  b6 {[%clk 0:02:37]} 20. Bd3 {[%clk 0:01:47]}  Rxg2 {[%clk 0:02:31]} 21. Qd6 {[%clk 0:01:33]}  Nf5 {[%clk 0:02:19]} 22. Bxf5 {[%clk 0:01:24]}  exf5 {[%clk 0:02:19]} 23. Qxc7+ {[%clk 0:01:18]}  Kxc7 {[%clk 0:02:18]} 24. e6 {[%clk 0:01:06]}  Rg7 {[%clk 0:00:14]} 25. exd7 {[%clk 0:01:00]}  Rhxh7 {[%clk 0:00:14]} 26. Rxh7 {[%clk 0:00:59]}  Rxh7 {[%clk 0:00:14]} 27. O-O-O {[%clk 0:00:59]} 1-0


[Site "https://www.chess.com"]

[Event "Titled Tuesday Blitz May 4 2021"]
[White "Manukian, Artak"]
[Black "Alice, Mateus Felizardo Viageiro"]
[WhiteFideId "13301373"]
[BlackFideId "14800047"]
[WhiteElo "2445"]
[BlackElo "2189"]
[Result "0-1"]
[Round "11"]
[TimeControl "180+1"]
[Date "2021.05.04"]
[WhiteClock "0:02:19"]
[BlackClock "0:01:42"]

1. e4 {[%clk 0:03:00]}  c5 {[%clk 0:02:59]} 2. Nf3 {[%clk 0:03:00]}  d6 {[%clk 0:02:58]} 3. Bb5+ {[%clk 0:03:00]}  Bd7 {[%clk 0:02:57]} 4. Bxd7+ {[%clk 0:02:59]}  Qxd7 {[%clk 0:02:57]} 5. c4 {[%clk 0:03:00]}  Nc6 {[%clk 0:02:58]} 6. Nc3 {[%clk 0:03:00]}  g6 {[%clk 0:02:57]} 7. d4 {[%clk 0:03:00]}  cxd4 {[%clk 0:02:56]} 8. Nxd4 {[%clk 0:03:01]}  Bg7 {[%clk 0:02:56]} 9. Be3 {[%clk 0:03:01]}  Nf6 {[%clk 0:02:55]} 10. f3 {[%clk 0:03:02]}  O-O {[%clk 0:02:53]} 11. O-O {[%clk 0:03:00]}  a6 {[%clk 0:02:50]} 12. a4 {[%clk 0:03:00]}  Rac8 {[%clk 0:02:48]} 13. b3 {[%clk 0:02:59]}  Rfe8 {[%clk 0:02:38]} 14. Qd2 {[%clk 0:02:56]}  h5 {[%clk 0:02:36]} 15. Rfd1 {[%clk 0:02:55]}  h4 {[%clk 0:02:34]} 16. Rac1 {[%clk 0:02:44]}  h3 {[%clk 0:02:33]} 17. g4 {[%clk 0:02:37]}  Nxg4 {[%clk 0:02:26]} 18. fxg4 {[%clk 0:02:36]}  Qxg4+ {[%clk 0:02:25]} 19. Kf2 {[%clk 0:02:22]}  Qg2+ {[%clk 0:01:49]} 20. Ke1 {[%clk 0:02:20]}  Qh1+ {[%clk 0:01:47]} 21. Ke2 {[%clk 0:02:19]}  Qxh2+ {[%clk 0:01:45]} 22. Kd3 {[%clk 0:02:19]}  Nb4# {[%clk 0:01:42]} 0-1


[Site "https://www.chess.com"]

[Event "Titled Tuesday Blitz May 4 2021"]
[White "Markidis, Konstantinos"]
[Black "Arabidze, Meri"]
[WhiteFideId "4203500"]
[BlackFideId "13604040"]
[WhiteElo "2304"]
[BlackElo "2432"]
[Result "1/2-1/2"]
[Round "11"]
[TimeControl "180+1"]
[Date "2021.05.04"]
[WhiteClock "0:00:08"]
[BlackClock "0:00:14"]

1. e4 {[%clk 0:03:00]}  c5 {[%clk 0:02:59]} 2. Nf3 {[%clk 0:03:00]}  e6 {[%clk 0:03:00]} 3. g3 {[%clk 0:03:00]}  Nc6 {[%clk 0:02:58]} 4. Bg2 {[%clk 0:03:00]}  Nf6 {[%clk 0:02:59]} 5. Nc3 {[%clk 0:03:00]}  d6 {[%clk 0:02:56]} 6. O-O {[%clk 0:03:00]}  Be7 {[%clk 0:02:55]} 7. d4 {[%clk 0:02:59]}  cxd4 {[%clk 0:02:56]} 8. Nxd4 {[%clk 0:02:59]}  Bd7 {[%clk 0:02:57]} 9. Nce2 {[%clk 0:02:59]}  O-O {[%clk 0:02:56]} 10. c4 {[%clk 0:02:58]}  Rc8 {[%clk 0:02:54]} 11. b3 {[%clk 0:02:58]}  a6 {[%clk 0:02:52]} 12. a4 {[%clk 0:02:45]}  Qc7 {[%clk 0:02:42]} 13. Bb2 {[%clk 0:02:35]}  Rfd8 {[%clk 0:02:42]} 14. Rc1 {[%clk 0:02:35]}  Be8 {[%clk 0:02:38]} 15. Nxc6 {[%clk 0:02:34]}  Bxc6 {[%clk 0:02:36]} 16. Nc3 {[%clk 0:02:32]}  Qb8 {[%clk 0:02:31]} 17. Re1 {[%clk 0:02:25]}  b6 {[%clk 0:02:27]} 18. Nd5 {[%clk 0:02:15]}  Bxd5 {[%clk 0:02:15]} 19. exd5 {[%clk 0:02:15]}  e5 {[%clk 0:02:15]} 20. f4 {[%clk 0:02:08]}  Nd7 {[%clk 0:02:14]} 21. Bh3 {[%clk 0:02:08]}  Bf6 {[%clk 0:02:12]} 22. fxe5 {[%clk 0:02:06]}  Bxe5 {[%clk 0:01:58]} 23. Bxe5 {[%clk 0:01:59]}  dxe5 {[%clk 0:01:59]} 24. Rf1 {[%clk 0:01:54]}  Qd6 {[%clk 0:01:51]} 25. Qf3 {[%clk 0:01:07]}  Rf8 {[%clk 0:01:41]} 26. Qe3 {[%clk 0:01:07]}  Rcd8 {[%clk 0:01:35]} 27. Rce1 {[%clk 0:01:01]}  Nc5 {[%clk 0:01:26]} 28. Qxe5 {[%clk 0:00:52]}  Qxe5 {[%clk 0:01:20]} 29. Rxe5 {[%clk 0:00:52]}  Nxb3 {[%clk 0:01:21]} 30. Rb1 {[%clk 0:00:39]}  Nd2 {[%clk 0:01:21]} 31. Ree1 {[%clk 0:00:22]}  Nxb1 {[%clk 0:01:21]} 32. Rxb1 {[%clk 0:00:22]}  Rd6 {[%clk 0:01:20]} 33. a5 {[%clk 0:00:20]}  b5 {[%clk 0:00:35]} 34. cxb5 {[%clk 0:00:16]}  Rxd5 {[%clk 0:00:36]} 35. bxa6 {[%clk 0:00:10]}  Rxa5 {[%clk 0:00:35]} 36. Bf1 {[%clk 0:00:10]}  g6 {[%clk 0:00:35]} 37. Rb7 {[%clk 0:00:09]}  Ra8 {[%clk 0:00:33]} 38. Bc4 {[%clk 0:00:09]}  R5xa6 {[%clk 0:00:30]} 39. Bxa6 {[%clk 0:00:08]}  Rxa6 {[%clk 0:00:31]} 40. Kg2 {[%clk 0:00:08]}  Ra2+ {[%clk 0:00:31]} 41. Kh3 {[%clk 0:00:07]}  Kg7 {[%clk 0:00:31]} 42. g4 {[%clk 0:00:07]}  Ra3+ {[%clk 0:00:30]} 43. Kg2 {[%clk 0:00:07]}  Ra2+ {[%clk 0:00:30]} 44. Kg3 {[%clk 0:00:07]}  Ra3+ {[%clk 0:00:29]} 45. Kg2 {[%clk 0:00:07]}  h6 {[%clk 0:00:29]} 46. h3 {[%clk 0:00:07]}  Kf6 {[%clk 0:00:27]} 47. Rb5 {[%clk 0:00:07]}  Ra2+ {[%clk 0:00:26]} 48. Kg3 {[%clk 0:00:07]}  Ra3+ {[%clk 0:00:27]} 49. Kg2 {[%clk 0:00:07]}  Re3 {[%clk 0:00:26]} 50. Rc5 {[%clk 0:00:07]}  Re5 {[%clk 0:00:25]} 51. Rc7 {[%clk 0:00:07]}  Re6 {[%clk 0:00:23]} 52. Rc5 {[%clk 0:00:07]}  Rd6 {[%clk 0:00:21]} 53. Kg3 {[%clk 0:00:06]}  Ke6 {[%clk 0:00:21]} 54. Ra5 {[%clk 0:00:06]}  Rd3+ {[%clk 0:00:21]} 55. Kg2 {[%clk 0:00:06]}  Kf6 {[%clk 0:00:20]} 56. Rb5 {[%clk 0:00:06]}  Kg7 {[%clk 0:00:19]} 57. Rc5 {[%clk 0:00:06]}  Rd2+ {[%clk 0:00:19]} 58. Kg3 {[%clk 0:00:05]}  Rd3+ {[%clk 0:00:20]} 59. Kg2 {[%clk 0:00:06]}  Ra3 {[%clk 0:00:21]} 60. Rd5 {[%clk 0:00:06]}  Rb3 {[%clk 0:00:21]} 61. Rc5 {[%clk 0:00:06]}  Kf8 {[%clk 0:00:19]} 62. Rd5 {[%clk 0:00:06]}  Ke7 {[%clk 0:00:20]} 63. Rc5 {[%clk 0:00:07]}  Rd3 {[%clk 0:00:19]} 64. Ra5 {[%clk 0:00:06]}  Rd2+ {[%clk 0:00:19]} 65. Kg3 {[%clk 0:00:06]}  Rd3+ {[%clk 0:00:20]} 66. Kg2 {[%clk 0:00:07]}  Rd6 {[%clk 0:00:21]} 67. Rb5 {[%clk 0:00:06]}  Ke6 {[%clk 0:00:20]} 68. Kg3 {[%clk 0:00:07]}  Rd5 {[%clk 0:00:20]} 69. Rb7 {[%clk 0:00:07]}  f5 {[%clk 0:00:16]} 70. gxf5+ {[%clk 0:00:07]}  Kxf5 {[%clk 0:00:15]} 71. Rf7+ {[%clk 0:00:06]}  Kg5 {[%clk 0:00:13]} 72. h4+ {[%clk 0:00:06]}  Kh5 {[%clk 0:00:13]} 73. Rf4 {[%clk 0:00:06]}  Rd3+ {[%clk 0:00:11]} 74. Kg2 {[%clk 0:00:06]}  Rc3 {[%clk 0:00:11]} 75. Kh2 {[%clk 0:00:07]}  Rd3 {[%clk 0:00:11]} 76. Kg2 {[%clk 0:00:07]}  Ra3 {[%clk 0:00:11]} 77. Kh2 {[%clk 0:00:07]}  Ra2+ {[%clk 0:00:11]} 78. Kg3 {[%clk 0:00:07]}  Ra3+ {[%clk 0:00:12]} 79. Kg2 {[%clk 0:00:08]}  Rb3 {[%clk 0:00:12]} 80. Kh2 {[%clk 0:00:08]}  Rc3 {[%clk 0:00:12]} 81. Kg2 {[%clk 0:00:08]}  Rc2+ {[%clk 0:00:13]} 82. Kg3 {[%clk 0:00:08]}  Rc3+ {[%clk 0:00:14]} 83. Kg2 {[%clk 0:00:08]}  Rd3 {[%clk 0:00:13]} 84. Kh2 {[%clk 0:00:08]}  g5 {[%clk 0:00:14]} 85. hxg5 {[%clk 0:00:08]}  hxg5 {[%clk 0:00:14]} 86. Ra4 {[%clk 0:00:08]}  Rd2+ {[%clk 0:00:13]} 87. Kg3 {[%clk 0:00:08]}  Rd3+ {[%clk 0:00:14]} 88. Kg2 {[%clk 0:00:08]}  g4 {[%clk 0:00:14]} 89. Ra8 {[%clk 0:00:08]}  Kh4 {[%clk 0:00:13]} 90. Rh8+ {[%clk 0:00:07]}  Kg5 {[%clk 0:00:13]} 91. Rg8+ {[%clk 0:00:07]}  Kh4 {[%clk 0:00:14]} 92. Rh8+ {[%clk 0:00:07]}  Kg5 {[%clk 0:00:14]} 93. Rg8+ {[%clk 0:00:08]}  Kh4 {[%clk 0:00:14]} 94. Rh8+ {[%clk 0:00:08]} 1/2-1/2


[Site "https://www.chess.com"]

[Event "Titled Tuesday Blitz May 4 2021"]
[White "Mezentsev, Ivan"]
[Black "Shtyka, Sergey"]
[WhiteFideId "13706195"]
[BlackFideId "4138465"]
[WhiteElo "2295"]
[BlackElo "2102"]
[Result "1-0"]
[Round "11"]
[TimeControl "180+1"]
[Date "2021.05.04"]
[WhiteClock "0:00:06"]
[BlackClock "0:00:01"]

1. e4 {[%clk 0:03:00]}  c5 {[%clk 0:01:38]} 2. Nf3 {[%clk 0:02:56]}  Nc6 {[%clk 0:01:38]} 3. Bb5 {[%clk 0:02:54]}  g6 {[%clk 0:01:37]} 4. O-O {[%clk 0:02:53]}  Bg7 {[%clk 0:01:37]} 5. c3 {[%clk 0:02:53]}  e5 {[%clk 0:01:36]} 6. Re1 {[%clk 0:02:46]}  Nge7 {[%clk 0:01:36]} 7. d4 {[%clk 0:02:31]}  cxd4 {[%clk 0:01:34]} 8. cxd4 {[%clk 0:02:30]}  Nxd4 {[%clk 0:01:33]} 9. Nxd4 {[%clk 0:02:30]}  exd4 {[%clk 0:01:34]} 10. e5 {[%clk 0:02:19]}  Nc6 {[%clk 0:01:29]} 11. Nd2 {[%clk 0:02:08]}  O-O {[%clk 0:01:28]} 12. Nc4 {[%clk 0:02:08]}  Re8 {[%clk 0:01:21]} 13. Bf4 {[%clk 0:02:05]}  a6 {[%clk 0:01:19]} 14. Bxc6 {[%clk 0:02:02]}  dxc6 {[%clk 0:01:20]} 15. Nd6 {[%clk 0:02:02]}  Re6 {[%clk 0:01:04]} 16. Qxd4 {[%clk 0:01:59]}  Qe7 {[%clk 0:00:50]} 17. Re3 {[%clk 0:01:38]}  f6 {[%clk 0:00:45]} 18. Rae1 {[%clk 0:01:23]}  fxe5 {[%clk 0:00:44]} 19. Bxe5 {[%clk 0:00:54]}  Bxe5 {[%clk 0:00:43]} 20. Nxc8 {[%clk 0:00:53]}  Rxc8 {[%clk 0:00:34]} 21. Rxe5 {[%clk 0:00:53]}  Rxe5 {[%clk 0:00:31]} 22. Rxe5 {[%clk 0:00:53]}  Qf7 {[%clk 0:00:24]} 23. b3 {[%clk 0:00:37]}  Re8 {[%clk 0:00:23]} 24. g3 {[%clk 0:00:31]}  Rxe5 {[%clk 0:00:22]} 25. Qxe5 {[%clk 0:00:31]}  h5 {[%clk 0:00:22]} 26. h4 {[%clk 0:00:30]}  Kh7 {[%clk 0:00:22]} 27. Kg2 {[%clk 0:00:27]}  Qd7 {[%clk 0:00:22]} 28. a4 {[%clk 0:00:22]}  Kg8 {[%clk 0:00:21]} 29. a5 {[%clk 0:00:22]}  Kh7 {[%clk 0:00:19]} 30. b4 {[%clk 0:00:21]}  Qf7 {[%clk 0:00:19]} 31. Kg1 {[%clk 0:00:16]}  Qd7 {[%clk 0:00:18]} 32. Kg2 {[%clk 0:00:16]}  Qf7 {[%clk 0:00:18]} 33. Qd6 {[%clk 0:00:15]}  Kg7 {[%clk 0:00:17]} 34. Qd4+ {[%clk 0:00:14]}  Kh7 {[%clk 0:00:17]} 35. Qe5 {[%clk 0:00:13]}  Kg8 {[%clk 0:00:16]} 36. Qd6 {[%clk 0:00:11]}  Kh7 {[%clk 0:00:16]} 37. f3 {[%clk 0:00:12]}  Qa2+ {[%clk 0:00:15]} 38. Kh3 {[%clk 0:00:12]}  Qf7 {[%clk 0:00:15]} 39. Kg2 {[%clk 0:00:10]}  Qa2+ {[%clk 0:00:14]} 40. Kf1 {[%clk 0:00:10]}  Qc4+ {[%clk 0:00:12]} 41. Kf2 {[%clk 0:00:10]}  Qa2+ {[%clk 0:00:11]} 42. Ke3 {[%clk 0:00:10]}  Qb3+ {[%clk 0:00:10]} 43. Ke4 {[%clk 0:00:09]}  Qf7 {[%clk 0:00:08]} 44. f4 {[%clk 0:00:07]}  Qf5+ {[%clk 0:00:07]} 45. Kd4 {[%clk 0:00:07]}  Qf7 {[%clk 0:00:06]} 46. Kc5 {[%clk 0:00:07]}  Qb3 {[%clk 0:00:04]} 47. Kb6 {[%clk 0:00:07]}  Qxg3 {[%clk 0:00:04]} 48. Kxb7 {[%clk 0:00:07]}  Qxh4 {[%clk 0:00:04]} 49. Kxa6 {[%clk 0:00:07]}  Qg4 {[%clk 0:00:03]} 50. Kb7 {[%clk 0:00:07]}  Qf5 {[%clk 0:00:02]} 51. a6 {[%clk 0:00:06]}  Qb1 {[%clk 0:00:01]} 52. a7 {[%clk 0:00:06]} 1-0


[Site "https://www.chess.com"]